[Event "Titled Tuesday Blitz September 14 2021"]
[White "Svane, Rasmus"]
[Black "Goryachkina, Aleksandra"]
[WhiteFideId "4657101"]
[BlackFideId "4147103"]
[WhiteElo "2643"]
[BlackElo "2441"]
[Result "1-0"]
[Round "03"]
[TimeControl "180+1"]
[Date "2021.09.15"]
[WhiteClock "0:00:19"]
[BlackClock "0:00:01"]

1. Nf3 {[%clk 0:03:00]}  Nf6 {[%clk 0:02:58]} 2. g3 {[%clk 0:03:01]}  c5 {[%clk 0:02:57]} 3. c4 {[%clk 0:03:00]}  Nc6 {[%clk 0:02:55]} 4. Nc3 {[%clk 0:03:00]}  e5 {[%clk 0:02:54]} 5. Bg2 {[%clk 0:02:59]}  d6 {[%clk 0:02:54]} 6. d3 {[%clk 0:02:59]}  Be7 {[%clk 0:02:53]} 7. Bg5 {[%clk 0:02:53]}  O-O {[%clk 0:02:52]} 8. Nd2 {[%clk 0:02:52]}  Be6 {[%clk 0:02:49]} 9. O-O {[%clk 0:02:50]}  Ne8 {[%clk 0:02:46]} 10. Bxe7 {[%clk 0:02:50]}  Nxe7 {[%clk 0:02:44]} 11. Bxb7 {[%clk 0:02:37]}  Rb8 {[%clk 0:02:44]} 12. Bg2 {[%clk 0:02:37]}  f5 {[%clk 0:02:41]} 13. e3 {[%clk 0:02:26]}  Qd7 {[%clk 0:02:25]} 14. Rb1 {[%clk 0:02:23]}  f4 {[%clk 0:02:21]} 15. exf4 {[%clk 0:02:22]}  exf4 {[%clk 0:02:21]} 16. Re1 {[%clk 0:02:23]}  Nc7 {[%clk 0:02:12]} 17. Qa4 {[%clk 0:02:19]}  Qc8 {[%clk 0:02:01]} 18. Nde4 {[%clk 0:02:04]}  Nf5 {[%clk 0:01:52]} 19. Ne2 {[%clk 0:01:56]}  Bd7 {[%clk 0:01:12]} 20. Qd1 {[%clk 0:01:52]}  Ne6 {[%clk 0:00:55]} 21. gxf4 {[%clk 0:01:19]}  Qd8 {[%clk 0:00:52]} 22. N4g3 {[%clk 0:01:07]}  Qh4 {[%clk 0:00:46]} 23. Nxf5 {[%clk 0:00:56]}  Rxf5 {[%clk 0:00:47]} 24. Ng3 {[%clk 0:00:57]}  Rxf4 {[%clk 0:00:36]} 25. Bd5 {[%clk 0:00:56]}  Rbf8 {[%clk 0:00:28]} 26. Qh5 {[%clk 0:00:32]}  Qf6 {[%clk 0:00:19]} 27. Ne4 {[%clk 0:00:32]}  Rxe4 {[%clk 0:00:17]} 28. Rxe4 {[%clk 0:00:32]}  Qxf2+ {[%clk 0:00:16]} 29. Kh1 {[%clk 0:00:32]}  g6 {[%clk 0:00:05]} 30. Qg4 {[%clk 0:00:30]}  Kh8 {[%clk 0:00:02]} 31. Bxe6 {[%clk 0:00:29]}  Bxe6 {[%clk 0:00:01]} 32. Rxe6 {[%clk 0:00:29]}  Qc2 {[%clk 0:00:01]} 33. Qd1 {[%clk 0:00:19]} 1-0


[Site "https://www.chess.com"]

[Event "Titled Tuesday Blitz September 14 2021"]
[White "Wagner, Dennis"]
[Black "Nakamura, Hikaru"]
[WhiteFideId "24650684"]
[BlackFideId "2016192"]
[WhiteElo "2686"]
[BlackElo "3175"]
[Result "0-1"]
[Round "03"]
[TimeControl "180+1"]
[Date "2021.09.15"]
[WhiteClock "0:00:02"]
[BlackClock "0:00:35"]

1. d4 {[%clk 0:03:00]}  g6 {[%clk 0:02:59]} 2. c4 {[%clk 0:03:01]}  Bg7 {[%clk 0:03:00]} 3. e4 {[%clk 0:03:00]}  d6 {[%clk 0:02:58]} 4. Nc3 {[%clk 0:03:01]}  Nc6 {[%clk 0:02:57]} 5. d5 {[%clk 0:02:59]}  Nd4 {[%clk 0:02:58]} 6. Nge2 {[%clk 0:02:57]}  c5 {[%clk 0:02:57]} 7. Be3 {[%clk 0:02:54]}  Nxe2 {[%clk 0:02:53]} 8. Bxe2 {[%clk 0:02:54]}  f5 {[%clk 0:02:33]} 9. exf5 {[%clk 0:02:43]}  Bxf5 {[%clk 0:02:33]} 10. g4 {[%clk 0:02:38]}  Bd7 {[%clk 0:02:29]} 11. h4 {[%clk 0:02:38]}  Qa5 {[%clk 0:02:15]} 12. Bd2 {[%clk 0:02:32]}  Qb6 {[%clk 0:02:14]} 13. h5 {[%clk 0:01:46]}  gxh5 {[%clk 0:02:06]} 14. g5 {[%clk 0:01:41]}  O-O-O {[%clk 0:02:06]} 15. Qc2 {[%clk 0:01:36]}  h6 {[%clk 0:02:05]} 16. f4 {[%clk 0:01:33]}  hxg5 {[%clk 0:02:03]} 17. fxg5 {[%clk 0:01:34]}  h4 {[%clk 0:02:02]} 18. O-O-O {[%clk 0:01:33]}  e6 {[%clk 0:01:58]} 19. Rdf1 {[%clk 0:01:12]}  Be5 {[%clk 0:01:46]} 20. Bg4 {[%clk 0:01:03]}  exd5 {[%clk 0:01:40]} 21. Bxd7+ {[%clk 0:01:03]}  Rxd7 {[%clk 0:01:33]} 22. Nxd5 {[%clk 0:00:58]}  Qd8 {[%clk 0:01:30]} 23. Qa4 {[%clk 0:00:53]}  Ne7 {[%clk 0:01:20]} 24. Qxa7 {[%clk 0:00:35]}  Nxd5 {[%clk 0:01:20]} 25. cxd5 {[%clk 0:00:35]}  Qc7 {[%clk 0:01:18]} 26. g6 {[%clk 0:00:26]}  b5 {[%clk 0:00:54]} 27. Qa8+ {[%clk 0:00:23]}  Qb8 {[%clk 0:00:55]} 28. Qa3 {[%clk 0:00:11]}  Qb7 {[%clk 0:00:51]} 29. Bg5 {[%clk 0:00:08]}  Qxd5 {[%clk 0:00:47]} 30. Rxh4 {[%clk 0:00:07]}  Kb7 {[%clk 0:00:36]} 31. Rxh8 {[%clk 0:00:03]}  Bxh8 {[%clk 0:00:37]} 32. Qg3 {[%clk 0:00:02]}  Qc4+ {[%clk 0:00:35]} 33. Kb1 {[%clk 0:00:02]}  Qxf1+ {[%clk 0:00:35]} 0-1


[Site "https://www.chess.com"]

[Event "Titled Tuesday Blitz September 14 2021"]
[White "Bortnyk, Olexandr"]
[Black "Rodriguez Hernandez, Luis Daniel"]
[WhiteFideId "14120828"]
[BlackFideId "3506770"]
[WhiteElo "2723"]
[BlackElo "2133"]
[Result "0-1"]
[Round "04"]
[TimeControl "180+1"]
[Date "2021.09.15"]
[WhiteClock "0:00:01"]
[BlackClock "0:00:10"]

1. e4 {[%clk 0:03:00]}  e5 {[%clk 0:02:59]} 2. Bc4 {[%clk 0:03:00]}  Nc6 {[%clk 0:03:00]} 3. d3 {[%clk 0:02:59]}  Bc5 {[%clk 0:02:59]} 4. Nc3 {[%clk 0:02:46]}  Nf6 {[%clk 0:02:59]} 5. Bg5 {[%clk 0:02:44]}  h6 {[%clk 0:02:56]} 6. Bh4 {[%clk 0:02:44]}  Na5 {[%clk 0:02:45]} 7. Nge2 {[%clk 0:02:17]}  Nxc4 {[%clk 0:02:43]} 8. dxc4 {[%clk 0:02:18]}  c6 {[%clk 0:02:28]} 9. f4 {[%clk 0:02:05]}  g5 {[%clk 0:01:58]} 10. fxg5 {[%clk 0:01:53]}  Ng4 {[%clk 0:01:58]} 11. Qd3 {[%clk 0:01:25]}  Ne3 {[%clk 0:01:51]} 12. Rg1 {[%clk 0:01:18]}  Ng4 {[%clk 0:01:10]} 13. Rf1 {[%clk 0:01:08]}  hxg5 {[%clk 0:01:09]} 14. Bg3 {[%clk 0:01:08]}  Nxh2 {[%clk 0:01:08]} 15. Bxe5 {[%clk 0:00:59]}  Nxf1 {[%clk 0:00:57]} 16. Bxh8 {[%clk 0:00:58]}  Ne3 {[%clk 0:00:58]} 17. b4 {[%clk 0:00:56]}  Nxg2+ {[%clk 0:00:32]} 18. Kf1 {[%clk 0:00:53]}  Ne3+ {[%clk 0:00:32]} 19. Ke1 {[%clk 0:00:53]}  Ng2+ {[%clk 0:00:31]} 20. Kd2 {[%clk 0:00:51]}  Be3+ {[%clk 0:00:29]} 21. Kd1 {[%clk 0:00:50]}  f6 {[%clk 0:00:29]} 22. Ng3 {[%clk 0:00:42]}  Kf7 {[%clk 0:00:25]} 23. Qe2 {[%clk 0:00:29]}  Bd4 {[%clk 0:00:23]} 24. Qh5+ {[%clk 0:00:25]}  Ke6 {[%clk 0:00:19]} 25. Qh3+ {[%clk 0:00:05]}  g4 {[%clk 0:00:17]} 26. Qxg4+ {[%clk 0:00:04]}  Kd6 {[%clk 0:00:17]} 27. Nf5+ {[%clk 0:00:05]}  Kc7 {[%clk 0:00:17]} 28. Qxg2 {[%clk 0:00:03]}  Bxc3 {[%clk 0:00:16]} 29. Rb1 {[%clk 0:00:01]}  Qxh8 {[%clk 0:00:15]} 30. Ke2 {[%clk 0:00:02]}  Qh5+ {[%clk 0:00:14]} 31. Kd3 {[%clk 0:00:02]}  Be5 {[%clk 0:00:14]} 32. Rh1 {[%clk 0:00:02]}  Qf7 {[%clk 0:00:13]} 33. Rh8 {[%clk 0:00:01]}  b5 {[%clk 0:00:13]} 34. c5 {[%clk 0:00:01]}  Bb7 {[%clk 0:00:10]} 0-1


[Site "https://www.chess.com"]

[Event "Titled Tuesday Blitz September 14 2021"]
[White "Bryakin, Mikhail"]
[Black "Petesch, Gabriel"]
[WhiteFideId "4165314"]
[BlackFideId "2032465"]
[WhiteElo "2313"]
[BlackElo "2374"]
[Result "1-0"]
[Round "04"]
[TimeControl "180+1"]
[Date "2021.09.15"]
[WhiteClock "0:02:07"]
[BlackClock "0:00:01"]

1. e4 {[%clk 0:02:54]}  d6 {[%clk 0:02:40]} 2. d4 {[%clk 0:02:53]}  Nf6 {[%clk 0:02:37]} 3. Nc3 {[%clk 0:02:52]}  e5 {[%clk 0:02:21]} 4. Nf3 {[%clk 0:02:50]}  exd4 {[%clk 0:02:18]} 5. Nxd4 {[%clk 0:02:51]}  Be7 {[%clk 0:02:18]} 6. Be2 {[%clk 0:02:49]}  O-O {[%clk 0:02:18]} 7. O-O {[%clk 0:02:50]}  Re8 {[%clk 0:02:15]} 8. f4 {[%clk 0:02:49]}  Bf8 {[%clk 0:02:09]} 9. Bf3 {[%clk 0:02:49]}  c6 {[%clk 0:01:49]} 10. Re1 {[%clk 0:02:34]}  Qc7 {[%clk 0:01:48]} 11. Be3 {[%clk 0:02:33]}  Nbd7 {[%clk 0:01:42]} 12. h3 {[%clk 0:02:33]}  Nc5 {[%clk 0:01:38]} 13. Bf2 {[%clk 0:02:32]}  Bd7 {[%clk 0:01:21]} 14. a4 {[%clk 0:02:32]}  Rad8 {[%clk 0:01:08]} 15. Qd2 {[%clk 0:02:31]}  Bc8 {[%clk 0:00:56]} 16. Rad1 {[%clk 0:02:30]}  Nfd7 {[%clk 0:00:34]} 17. b4 {[%clk 0:02:24]}  Ne6 {[%clk 0:00:33]} 18. Nf5 {[%clk 0:02:24]}  g6 {[%clk 0:00:30]} 19. Nxd6 {[%clk 0:02:19]}  Bxd6 {[%clk 0:00:28]} 20. Qxd6 {[%clk 0:02:20]}  Qxd6 {[%clk 0:00:29]} 21. Rxd6 {[%clk 0:02:20]}  Nxf4 {[%clk 0:00:21]} 22. Red1 {[%clk 0:02:17]}  b6 {[%clk 0:00:17]} 23. Bh4 {[%clk 0:02:17]}  Ne6 {[%clk 0:00:05]} 24. Bxd8 {[%clk 0:02:16]}  Rxd8 {[%clk 0:00:06]} 25. Rxc6 {[%clk 0:02:15]}  Bb7 {[%clk 0:00:03]} 26. Rcd6 {[%clk 0:02:15]}  Nef8 {[%clk 0:00:04]} 27. Bg4 {[%clk 0:02:14]}  f5 {[%clk 0:00:02]} 28. exf5 {[%clk 0:02:14]}  h5 {[%clk 0:00:02]} 29. Be2 {[%clk 0:02:10]}  Rc8 {[%clk 0:00:02]} 30. Rxd7 {[%clk 0:02:07]}  Nxd7 {[%clk 0:00:02]} 31. Rxd7 {[%clk 0:02:07]}  Rb8 {[%clk 0:00:01]} 1-0


[Site "https://www.chess.com"]

[Event "Titled Tuesday Blitz September 14 2021"]
[White "Grischuk, Alexander"]
[Black "Vasquez Schroeder, Rodrigo"]
[WhiteFideId "4126025"]
[BlackFideId "3400042"]
[WhiteElo "3075"]
[BlackElo "2789"]
[Result "1-0"]
[Round "04"]
[TimeControl "180+1"]
[Date "2021.09.15"]
[WhiteClock "0:00:21"]
[BlackClock "0:00:20"]

1. e4 {[%clk 0:03:00]}  e5 {[%clk 0:02:59]} 2. Nf3 {[%clk 0:03:00]}  Nc6 {[%clk 0:02:59]} 3. Bb5 {[%clk 0:03:00]}  a6 {[%clk 0:02:59]} 4. Ba4 {[%clk 0:03:00]}  Nf6 {[%clk 0:02:59]} 5. O-O {[%clk 0:03:00]}  Be7 {[%clk 0:03:00]} 6. d3 {[%clk 0:02:58]}  d6 {[%clk 0:02:58]} 7. c3 {[%clk 0:02:58]}  O-O {[%clk 0:02:58]} 8. Re1 {[%clk 0:02:58]}  b5 {[%clk 0:02:55]} 9. Bc2 {[%clk 0:02:57]}  Bb7 {[%clk 0:02:53]} 10. Nbd2 {[%clk 0:02:56]}  Re8 {[%clk 0:02:53]} 11. Nf1 {[%clk 0:02:55]}  Bf8 {[%clk 0:02:53]} 12. Bg5 {[%clk 0:02:52]}  h6 {[%clk 0:02:53]} 13. Bh4 {[%clk 0:02:52]}  Be7 {[%clk 0:02:45]} 14. Ne3 {[%clk 0:02:52]}  Nh7 {[%clk 0:02:29]} 15. Bg3 {[%clk 0:02:49]}  Bf8 {[%clk 0:02:25]} 16. a4 {[%clk 0:02:41]}  Ne7 {[%clk 0:02:17]} 17. b4 {[%clk 0:02:36]}  Ng6 {[%clk 0:02:16]} 18. Bb3 {[%clk 0:02:34]}  c6 {[%clk 0:02:07]} 19. Nf5 {[%clk 0:02:28]}  Nf6 {[%clk 0:01:58]} 20. N3h4 {[%clk 0:02:16]}  Nxh4 {[%clk 0:01:34]} 21. Bxh4 {[%clk 0:02:17]}  g6 {[%clk 0:01:33]} 22. Ne3 {[%clk 0:02:14]}  Be7 {[%clk 0:01:31]} 23. Qf3 {[%clk 0:02:11]}  Rf8 {[%clk 0:01:30]} 24. axb5 {[%clk 0:02:04]}  axb5 {[%clk 0:01:26]} 25. Rxa8 {[%clk 0:02:03]}  Bxa8 {[%clk 0:01:27]} 26. Ra1 {[%clk 0:02:04]}  Kg7 {[%clk 0:00:56]} 27. Ra7 {[%clk 0:02:02]}  Ng8 {[%clk 0:00:49]} 28. Rxe7 {[%clk 0:01:44]}  Nxe7 {[%clk 0:00:50]} 29. Qf6+ {[%clk 0:01:44]}  Kg8 {[%clk 0:00:47]} 30. Qxe7 {[%clk 0:01:19]}  Qxe7 {[%clk 0:00:44]} 31. Bxe7 {[%clk 0:01:20]}  Re8 {[%clk 0:00:44]} 32. Bxd6 {[%clk 0:01:08]}  Rd8 {[%clk 0:00:44]} 33. Bxe5 {[%clk 0:01:09]}  Rxd3 {[%clk 0:00:45]} 34. Kf1 {[%clk 0:01:09]}  Rd2 {[%clk 0:00:40]} 35. Bc2 {[%clk 0:01:03]}  Rd7 {[%clk 0:00:35]} 36. Bd4 {[%clk 0:01:00]}  h5 {[%clk 0:00:33]} 37. Ke2 {[%clk 0:00:59]}  Bb7 {[%clk 0:00:34]} 38. f3 {[%clk 0:00:56]}  Rd8 {[%clk 0:00:33]} 39. Bb3 {[%clk 0:00:53]}  Ra8 {[%clk 0:00:33]} 40. Nc2 {[%clk 0:00:51]}  Bc8 {[%clk 0:00:32]} 41. Bc5 {[%clk 0:00:47]}  Kg7 {[%clk 0:00:30]} 42. h4 {[%clk 0:00:44]}  Bd7 {[%clk 0:00:30]} 43. Ke3 {[%clk 0:00:38]}  Ra6 {[%clk 0:00:27]} 44. Kf4 {[%clk 0:00:38]}  f6 {[%clk 0:00:26]} 45. e5 {[%clk 0:00:35]}  fxe5+ {[%clk 0:00:26]} 46. Kxe5 {[%clk 0:00:35]}  Ra8 {[%clk 0:00:26]} 47. Kd6 {[%clk 0:00:35]}  Be8 {[%clk 0:00:27]} 48. Nd4 {[%clk 0:00:34]}  Rc8 {[%clk 0:00:24]} 49. Be6 {[%clk 0:00:32]}  Ra8 {[%clk 0:00:22]} 50. Nxc6 {[%clk 0:00:29]}  Ra6 {[%clk 0:00:21]} 51. Bd5 {[%clk 0:00:26]}  Kf6 {[%clk 0:00:21]} 52. Bd4+ {[%clk 0:00:26]}  Kf5 {[%clk 0:00:21]} 53. g3 {[%clk 0:00:22]}  g5 {[%clk 0:00:20]} 54. Be4# {[%clk 0:00:21]} 1-0


[Site "https://www.chess.com"]

[Event "Titled Tuesday Blitz September 14 2021"]
[White "Haitin, Ilja"]
[Black "Demchenko, Anton"]
[WhiteFideId "4501764"]
[BlackFideId "4160258"]
[WhiteElo "2218"]
[BlackElo "2583"]
[Result "0-1"]
[Round "04"]
[TimeControl "180+1"]
[Date "2021.09.15"]
[WhiteClock "0:00:01"]
[BlackClock "0:00:15"]

1. Nf3 {[%clk 0:03:00]}  Nf6 {[%clk 0:02:57]} 2. g3 {[%clk 0:03:01]}  b5 {[%clk 0:02:57]} 3. Bg2 {[%clk 0:03:02]}  Bb7 {[%clk 0:02:56]} 4. O-O {[%clk 0:03:02]}  e6 {[%clk 0:02:56]} 5. d3 {[%clk 0:03:02]}  Be7 {[%clk 0:02:55]} 6. e4 {[%clk 0:03:00]}  d6 {[%clk 0:02:55]} 7. a4 {[%clk 0:03:00]}  b4 {[%clk 0:02:55]} 8. a5 {[%clk 0:02:59]}  O-O {[%clk 0:02:52]} 9. Nbd2 {[%clk 0:02:57]}  c5 {[%clk 0:02:51]} 10. Nb3 {[%clk 0:02:52]}  Qc8 {[%clk 0:02:37]} 11. e5 {[%clk 0:02:49]}  dxe5 {[%clk 0:02:36]} 12. Nxe5 {[%clk 0:02:50]}  Bxg2 {[%clk 0:02:35]} 13. Kxg2 {[%clk 0:02:51]}  Nc6 {[%clk 0:02:34]} 14. Nxc6 {[%clk 0:02:49]}  Qxc6+ {[%clk 0:02:35]} 15. Qf3 {[%clk 0:02:49]}  Nd5 {[%clk 0:02:32]} 16. Nd2 {[%clk 0:02:43]}  Rac8 {[%clk 0:02:31]} 17. Nc4 {[%clk 0:02:42]}  Bf6 {[%clk 0:02:31]} 18. Bd2 {[%clk 0:02:32]}  Rfd8 {[%clk 0:02:30]} 19. Rae1 {[%clk 0:02:31]}  Ne7 {[%clk 0:02:24]} 20. Qxc6 {[%clk 0:02:19]}  Nxc6 {[%clk 0:02:23]} 21. Be3 {[%clk 0:02:16]}  Rd5 {[%clk 0:02:22]} 22. f4 {[%clk 0:02:10]}  h5 {[%clk 0:02:14]} 23. h3 {[%clk 0:02:09]}  g6 {[%clk 0:02:13]} 24. Re2 {[%clk 0:02:09]}  b3 {[%clk 0:01:56]} 25. cxb3 {[%clk 0:01:57]}  Rb8 {[%clk 0:01:56]} 26. Ne5 {[%clk 0:01:45]}  Nxe5 {[%clk 0:01:48]} 27. fxe5 {[%clk 0:01:45]}  Bxe5 {[%clk 0:01:49]} 28. Rc1 {[%clk 0:01:42]}  Rb5 {[%clk 0:01:21]} 29. a6 {[%clk 0:01:32]}  Bd6 {[%clk 0:01:20]} 30. Rc3 {[%clk 0:01:25]}  Rb6 {[%clk 0:01:20]} 31. Rec2 {[%clk 0:01:23]}  Rxa6 {[%clk 0:01:15]} 32. Bxc5 {[%clk 0:01:23]}  Bxc5 {[%clk 0:01:15]} 33. Rxc5 {[%clk 0:01:24]}  Rxd3 {[%clk 0:01:15]} 34. Rc7 {[%clk 0:01:02]}  Rxb3 {[%clk 0:01:05]} 35. Rf2 {[%clk 0:00:46]}  Ra2 {[%clk 0:00:42]} 36. Rcxf7 {[%clk 0:00:20]}  Rbxb2 {[%clk 0:00:42]} 37. Rf8+ {[%clk 0:00:12]}  Kg7 {[%clk 0:00:42]} 38. Rf7+ {[%clk 0:00:12]}  Kh6 {[%clk 0:00:43]} 39. Rxb2 {[%clk 0:00:09]}  Rxb2+ {[%clk 0:00:44]} 40. Kf3 {[%clk 0:00:10]}  a5 {[%clk 0:00:35]} 41. Re7 {[%clk 0:00:03]}  Rb6 {[%clk 0:00:34]} 42. Ra7 {[%clk 0:00:03]}  Rb5 {[%clk 0:00:33]} 43. Ra6 {[%clk 0:00:03]}  e5 {[%clk 0:00:23]} 44. h4 {[%clk 0:00:03]}  Kg7 {[%clk 0:00:19]} 45. Ke4 {[%clk 0:00:03]}  Kf7 {[%clk 0:00:19]} 46. Ra7+ {[%clk 0:00:03]}  Kf6 {[%clk 0:00:19]} 47. Ra6+ {[%clk 0:00:04]}  Kg7 {[%clk 0:00:19]} 48. Ra7+ {[%clk 0:00:04]}  Kh6 {[%clk 0:00:20]} 49. Ra6 {[%clk 0:00:05]}  Rb3 {[%clk 0:00:20]} 50. Rxa5 {[%clk 0:00:02]}  Rxg3 {[%clk 0:00:19]} 51. Kxe5 {[%clk 0:00:01]}  Rg4 {[%clk 0:00:20]} 52. Kf6 {[%clk 0:00:01]}  Rf4+ {[%clk 0:00:17]} 53. Ke6 {[%clk 0:00:01]}  Rxh4 {[%clk 0:00:17]} 54. Ke5 {[%clk 0:00:01]}  Rg4 {[%clk 0:00:15]} 0-1


[Site "https://www.chess.com"]

[Event "Titled Tuesday Blitz September 14 2021"]
[White "Hansen, Eric"]
[Black "Timmermans, Mark"]
[WhiteFideId "2606771"]
[BlackFideId "1026399"]
[WhiteElo "2568"]
[BlackElo "2460"]
[Result "1/2-1/2"]
[Round "04"]
[TimeControl "180+1"]
[Date "2021.09.15"]
[WhiteClock "0:00:41"]
[BlackClock "0:01:31"]

1. e4 {[%clk 0:02:58]}  e5 {[%clk 0:03:00]} 2. Nf3 {[%clk 0:02:58]}  Nc6 {[%clk 0:02:58]} 3. Bb5 {[%clk 0:02:55]}  f5 {[%clk 0:02:58]} 4. d3 {[%clk 0:02:51]}  fxe4 {[%clk 0:02:59]} 5. dxe4 {[%clk 0:02:52]}  Nf6 {[%clk 0:02:59]} 6. Nc3 {[%clk 0:02:51]}  Bb4 {[%clk 0:02:59]} 7. Bc4 {[%clk 0:02:03]}  Bxc3+ {[%clk 0:02:59]} 8. bxc3 {[%clk 0:02:03]}  d6 {[%clk 0:02:59]} 9. Qd3 {[%clk 0:01:53]}  Na5 {[%clk 0:02:54]} 10. Bg5 {[%clk 0:01:46]}  Nxc4 {[%clk 0:02:51]} 11. Qxc4 {[%clk 0:01:46]}  Qe7 {[%clk 0:02:52]} 12. Rb1 {[%clk 0:01:42]}  Qf7 {[%clk 0:02:39]} 13. Qxf7+ {[%clk 0:01:42]}  Kxf7 {[%clk 0:02:40]} 14. Nd2 {[%clk 0:01:42]}  b6 {[%clk 0:02:38]} 15. f3 {[%clk 0:01:42]}  a5 {[%clk 0:02:37]} 16. c4 {[%clk 0:01:40]}  h6 {[%clk 0:02:37]} 17. Be3 {[%clk 0:01:40]}  g5 {[%clk 0:02:33]} 18. h4 {[%clk 0:01:38]}  Rg8 {[%clk 0:02:28]} 19. hxg5 {[%clk 0:01:38]}  hxg5 {[%clk 0:02:28]} 20. g4 {[%clk 0:01:39]}  Be6 {[%clk 0:02:27]} 21. Ke2 {[%clk 0:01:39]}  Kg6 {[%clk 0:02:24]} 22. Rh2 {[%clk 0:01:36]}  Rh8 {[%clk 0:02:24]} 23. Rbh1 {[%clk 0:01:36]}  Rxh2+ {[%clk 0:02:24]} 24. Rxh2 {[%clk 0:01:37]}  Rb8 {[%clk 0:01:46]} 25. Kd3 {[%clk 0:01:00]}  b5 {[%clk 0:01:46]} 26. cxb5 {[%clk 0:00:59]}  Rxb5 {[%clk 0:01:47]} 27. c4 {[%clk 0:00:50]}  Rb4 {[%clk 0:01:40]} 28. Kc3 {[%clk 0:00:45]}  Ra4 {[%clk 0:01:30]} 29. Kb3 {[%clk 0:00:45]}  Rb4+ {[%clk 0:01:31]} 30. Kc3 {[%clk 0:00:45]}  Ra4 {[%clk 0:01:31]} 31. Kb3 {[%clk 0:00:43]}  Rb4+ {[%clk 0:01:31]} 32. Kc3 {[%clk 0:00:41]} 1/2-1/2


[Site "https://www.chess.com"]

[Event "Titled Tuesday Blitz September 14 2021"]
[White "Kezin, Roman"]
[Black "Sadhwani, Raunak"]
[WhiteFideId "24124621"]
[BlackFideId "35093487"]
[WhiteElo "2570"]
[BlackElo "2517"]
[Result "1-0"]
[Round "04"]
[TimeControl "180+1"]
[Date "2021.09.15"]
[WhiteClock "0:00:48"]
[BlackClock "0:00:24"]

1. d4 {[%clk 0:02:59]}  Nf6 {[%clk 0:02:57]} 2. c4 {[%clk 0:03:00]}  Nc6 {[%clk 0:02:57]} 3. Nf3 {[%clk 0:02:57]}  e6 {[%clk 0:02:57]} 4. a3 {[%clk 0:02:58]}  d6 {[%clk 0:02:57]} 5. Nc3 {[%clk 0:02:55]}  g6 {[%clk 0:02:57]} 6. e4 {[%clk 0:02:51]}  Bg7 {[%clk 0:02:57]} 7. Be2 {[%clk 0:02:52]}  O-O {[%clk 0:02:56]} 8. O-O {[%clk 0:02:52]}  e5 {[%clk 0:02:56]} 9. d5 {[%clk 0:02:53]}  Ne7 {[%clk 0:02:56]} 10. Ne1 {[%clk 0:02:52]}  Nd7 {[%clk 0:02:57]} 11. Be3 {[%clk 0:02:51]}  f5 {[%clk 0:02:57]} 12. f3 {[%clk 0:02:52]}  f4 {[%clk 0:02:58]} 13. Bf2 {[%clk 0:02:52]}  g5 {[%clk 0:02:58]} 14. Nd3 {[%clk 0:02:53]}  Rf6 {[%clk 0:02:59]} 15. c5 {[%clk 0:02:52]}  Rg6 {[%clk 0:02:58]} 16. cxd6 {[%clk 0:02:44]}  cxd6 {[%clk 0:02:59]} 17. Nb5 {[%clk 0:02:45]}  a6 {[%clk 0:02:50]} 18. Na7 {[%clk 0:02:45]}  Nf6 {[%clk 0:02:40]} 19. Nxc8 {[%clk 0:02:43]}  Rxc8 {[%clk 0:02:41]} 20. Qb3 {[%clk 0:02:30]}  g4 {[%clk 0:02:38]} 21. Bh4 {[%clk 0:02:30]}  g3 {[%clk 0:02:37]} 22. h3 {[%clk 0:02:24]}  Rh6 {[%clk 0:02:35]} 23. Bxf6 {[%clk 0:02:18]}  Rxf6 {[%clk 0:02:36]} 24. Qxb7 {[%clk 0:02:05]}  Rb8 {[%clk 0:02:24]} 25. Qxa6 {[%clk 0:02:04]}  Ng6 {[%clk 0:02:25]} 26. Rfc1 {[%clk 0:02:02]}  Nh4 {[%clk 0:02:25]} 27. b4 {[%clk 0:01:48]}  Rh6 {[%clk 0:02:01]} 28. Rc6 {[%clk 0:01:44]}  Bf8 {[%clk 0:01:45]} 29. Rac1 {[%clk 0:01:41]}  Ra8 {[%clk 0:01:06]} 30. Qb7 {[%clk 0:01:39]}  Rb8 {[%clk 0:01:06]} 31. Rc8 {[%clk 0:01:20]}  Rxb7 {[%clk 0:01:01]} 32. Rxd8 {[%clk 0:01:20]}  Ra7 {[%clk 0:01:02]} 33. Rcc8 {[%clk 0:01:08]}  Rf6 {[%clk 0:00:54]} 34. Ra8 {[%clk 0:01:07]}  Rb7 {[%clk 0:00:46]} 35. Rdb8 {[%clk 0:01:05]}  Rc7 {[%clk 0:00:44]} 36. Rc8 {[%clk 0:01:05]}  Rff7 {[%clk 0:00:45]} 37. a4 {[%clk 0:00:59]}  Rb7 {[%clk 0:00:33]} 38. b5 {[%clk 0:00:57]}  Rfc7 {[%clk 0:00:33]} 39. Nb4 {[%clk 0:00:55]}  Ra7 {[%clk 0:00:25]} 40. Rxf8+ {[%clk 0:00:53]}  Kg7 {[%clk 0:00:24]} 41. Rfc8 {[%clk 0:00:48]} 1-0


[Site "https://www.chess.com"]

[Event "Titled Tuesday Blitz September 14 2021"]
[White "Kislov, Oleg"]
[Black "Abdurakhmonov, Mukhammadali"]
[WhiteFideId "13503774"]
[BlackFideId "14207346"]
[WhiteElo "2252"]
[BlackElo "2241"]
[Result "0-1"]
[Round "04"]
[TimeControl "180+1"]
[Date "2021.09.15"]
[WhiteClock "0:00:29"]
[BlackClock "0:01:20"]

1. e4 {[%clk 0:03:00]}  e5 {[%clk 0:02:56]} 2. Nf3 {[%clk 0:03:00]}  Nc6 {[%clk 0:02:56]} 3. d4 {[%clk 0:03:01]}  exd4 {[%clk 0:02:54]} 4. Nxd4 {[%clk 0:03:02]}  Nf6 {[%clk 0:02:55]} 5. Nc3 {[%clk 0:03:02]}  Bb4 {[%clk 0:02:54]} 6. Nxc6 {[%clk 0:03:02]}  bxc6 {[%clk 0:02:54]} 7. Bd3 {[%clk 0:03:02]}  O-O {[%clk 0:02:53]} 8. O-O {[%clk 0:03:01]}  d5 {[%clk 0:02:52]} 9. exd5 {[%clk 0:03:01]}  cxd5 {[%clk 0:02:46]} 10. Bg5 {[%clk 0:03:00]}  c6 {[%clk 0:02:44]} 11. Qf3 {[%clk 0:02:58]}  Rb8 {[%clk 0:02:45]} 12. Bxf6 {[%clk 0:02:53]}  Qxf6 {[%clk 0:02:44]} 13. Qxf6 {[%clk 0:02:53]}  gxf6 {[%clk 0:02:44]} 14. Ne2 {[%clk 0:02:52]}  Bd6 {[%clk 0:02:35]} 15. b3 {[%clk 0:02:50]}  Re8 {[%clk 0:02:29]} 16. Nd4 {[%clk 0:02:46]}  Bd7 {[%clk 0:02:28]} 17. Bf5 {[%clk 0:02:36]}  Bxf5 {[%clk 0:02:26]} 18. Nxf5 {[%clk 0:02:36]}  Bb4 {[%clk 0:02:26]} 19. Ng3 {[%clk 0:01:45]}  Re5 {[%clk 0:02:17]} 20. Rad1 {[%clk 0:01:44]}  Rbe8 {[%clk 0:02:17]} 21. Rd4 {[%clk 0:01:32]}  a5 {[%clk 0:02:16]} 22. Rd3 {[%clk 0:01:25]}  Kg7 {[%clk 0:02:04]} 23. h3 {[%clk 0:00:59]}  Kg6 {[%clk 0:02:00]} 24. Rfd1 {[%clk 0:00:56]}  Re1+ {[%clk 0:01:42]} 25. Kh2 {[%clk 0:00:54]}  f5 {[%clk 0:01:40]} 26. Nf1 {[%clk 0:00:46]}  Rxd1 {[%clk 0:01:37]} 27. Rxd1 {[%clk 0:00:46]}  Re2 {[%clk 0:01:38]} 28. c3 {[%clk 0:00:43]}  Bxc3 {[%clk 0:01:34]} 29. Rc1 {[%clk 0:00:43]}  d4 {[%clk 0:01:29]} 30. Kg3 {[%clk 0:00:35]}  Rxa2 {[%clk 0:01:27]} 31. Kf3 {[%clk 0:00:34]}  Rb2 {[%clk 0:01:26]} 32. g4 {[%clk 0:00:28]}  Rxb3 {[%clk 0:01:26]} 33. gxf5+ {[%clk 0:00:29]}  Kf6 {[%clk 0:01:23]} 34. Ng3 {[%clk 0:00:29]}  Bb2+ {[%clk 0:01:20]} 0-1


[Site "https://www.chess.com"]